[Event "Titled Tuesday Blitz October 18 Late 2022"]
[White "Yeletsky, Ivan"]
[Black "Amburgy, Ryan"]
[WhiteFideId "24180327"]
[BlackFideId "30924820"]
[WhiteElo "2391"]
[BlackElo "2121"]
[Result "1-0"]
[Round "06"]
[TimeControl "180+1"]
[Date "2022.10.18"]
[WhiteClock "0:00:26"]
[BlackClock "0:00:24"]

1. Nf3 {[%clk 0:03:00]}  d5 {[%clk 0:03:00]} 2. g3 {[%clk 0:03:01]}  Nf6 {[%clk 0:03:00]} 3. Bg2 {[%clk 0:03:01]}  g6 {[%clk 0:03:01]} 4. c4 {[%clk 0:03:00]}  dxc4 {[%clk 0:03:00]} 5. Na3 {[%clk 0:03:00]}  Bg7 {[%clk 0:02:54]} 6. Nxc4 {[%clk 0:03:00]}  O-O {[%clk 0:02:55]} 7. O-O {[%clk 0:03:00]}  Nbd7 {[%clk 0:02:53]} 8. d3 {[%clk 0:02:59]}  Nb6 {[%clk 0:02:53]} 9. Na5 {[%clk 0:02:51]}  c6 {[%clk 0:02:51]} 10. Bd2 {[%clk 0:02:50]}  Nfd5 {[%clk 0:02:38]} 11. Qc2 {[%clk 0:02:49]}  Qc7 {[%clk 0:02:35]} 12. e4 {[%clk 0:02:48]}  Nf6 {[%clk 0:02:36]} 13. Bf4 {[%clk 0:02:48]}  Qd8 {[%clk 0:02:36]} 14. Rfd1 {[%clk 0:02:43]}  Nbd7 {[%clk 0:02:11]} 15. Qd2 {[%clk 0:02:38]}  Nc5 {[%clk 0:02:09]} 16. b4 {[%clk 0:02:34]}  Ne6 {[%clk 0:02:09]} 17. Bh6 {[%clk 0:02:33]}  Qc7 {[%clk 0:02:06]} 18. Bxg7 {[%clk 0:02:33]}  Kxg7 {[%clk 0:02:07]} 19. Rac1 {[%clk 0:02:32]}  Rd8 {[%clk 0:02:05]} 20. Qb2 {[%clk 0:02:32]}  Kg8 {[%clk 0:02:05]} 21. Nc4 {[%clk 0:02:23]}  Ng7 {[%clk 0:01:52]} 22. h3 {[%clk 0:02:21]}  Be6 {[%clk 0:01:52]} 23. Na5 {[%clk 0:02:15]}  Qb6 {[%clk 0:01:52]} 24. a3 {[%clk 0:02:11]}  h5 {[%clk 0:01:41]} 25. Ng5 {[%clk 0:02:09]}  Rd7 {[%clk 0:01:40]} 26. d4 {[%clk 0:02:09]}  Rad8 {[%clk 0:01:37]} 27. Rd2 {[%clk 0:01:50]}  Rxd4 {[%clk 0:01:32]} 28. Rxd4 {[%clk 0:01:50]}  Qxd4 {[%clk 0:01:32]} 29. Qxd4 {[%clk 0:01:50]}  Rxd4 {[%clk 0:01:33]} 30. Nxb7 {[%clk 0:01:51]}  Rd3 {[%clk 0:01:21]} 31. Na5 {[%clk 0:01:51]}  Rxa3 {[%clk 0:01:20]} 32. Nxc6 {[%clk 0:01:51]}  Bd7 {[%clk 0:01:06]} 33. Nxe7+ {[%clk 0:01:50]}  Kf8 {[%clk 0:01:07]} 34. Nc8 {[%clk 0:01:45]}  Ne6 {[%clk 0:01:03]} 35. Nxe6+ {[%clk 0:01:42]}  Bxe6 {[%clk 0:01:04]} 36. Nd6 {[%clk 0:01:43]}  a6 {[%clk 0:01:02]} 37. Bf1 {[%clk 0:01:37]}  Ra4 {[%clk 0:01:03]} 38. Rb1 {[%clk 0:01:33]}  Ke7 {[%clk 0:01:03]} 39. e5 {[%clk 0:01:30]}  Nd5 {[%clk 0:01:03]} 40. b5 {[%clk 0:01:30]}  axb5 {[%clk 0:01:04]} 41. Bxb5 {[%clk 0:01:30]}  Rb4 {[%clk 0:01:03]} 42. Rxb4 {[%clk 0:01:29]}  Nxb4 {[%clk 0:01:04]} 43. h4 {[%clk 0:01:28]}  Nc2 {[%clk 0:01:02]} 44. f4 {[%clk 0:01:26]}  Nd4 {[%clk 0:01:02]} 45. Bd3 {[%clk 0:01:26]}  Nc6 {[%clk 0:00:56]} 46. Nb7 {[%clk 0:01:19]}  Nd4 {[%clk 0:00:54]} 47. Kf2 {[%clk 0:01:17]}  Bf5 {[%clk 0:00:53]} 48. Bf1 {[%clk 0:01:17]}  Ne6 {[%clk 0:00:52]} 49. Nd6 {[%clk 0:01:17]}  Bc2 {[%clk 0:00:51]} 50. Bc4 {[%clk 0:01:16]}  Bb1 {[%clk 0:00:50]} 51. Ke3 {[%clk 0:01:12]}  Bc2 {[%clk 0:00:51]} 52. Bxe6 {[%clk 0:01:09]}  Kxe6 {[%clk 0:00:51]} 53. Nb5 {[%clk 0:01:09]}  Bb1 {[%clk 0:00:51]} 54. Nd4+ {[%clk 0:01:08]}  Kd5 {[%clk 0:00:51]} 55. Ne2 {[%clk 0:01:06]}  Bf5 {[%clk 0:00:50]} 56. Nc3+ {[%clk 0:01:05]}  Ke6 {[%clk 0:00:50]} 57. Ne4 {[%clk 0:01:05]}  Kd5 {[%clk 0:00:47]} 58. Ng5 {[%clk 0:01:05]}  Be6 {[%clk 0:00:40]} 59. Kd3 {[%clk 0:00:29]}  Bf5+ {[%clk 0:00:31]} 60. Kd2 {[%clk 0:00:28]}  Be6 {[%clk 0:00:27]} 61. Ke3 {[%clk 0:00:28]}  Kc6 {[%clk 0:00:22]} 62. Nxe6 {[%clk 0:00:24]}  fxe6 {[%clk 0:00:23]} 63. Kf3 {[%clk 0:00:25]}  Kd7 {[%clk 0:00:23]} 64. g4 {[%clk 0:00:25]}  hxg4+ {[%clk 0:00:24]} 65. Kxg4 {[%clk 0:00:26]} 1-0


[Site "https://www.chess.com"]

[Event "Titled Tuesday Blitz October 18 Late 2022"]
[White "Zakaryan, David"]
[Black "Deac, Bogdan-Daniel"]
[WhiteFideId "24101923"]
[BlackFideId "1226380"]
[WhiteElo "2409"]
[BlackElo "2648"]
[Result "0-1"]
[Round "06"]
[TimeControl "180+1"]
[Date "2022.10.18"]
[WhiteClock "0:00:16"]
[BlackClock "0:00:15"]

1. g3 {[%clk 0:03:00]}  d5 {[%clk 0:02:59]} 2. Nf3 {[%clk 0:02:57]}  Nf6 {[%clk 0:02:59]} 3. Bg2 {[%clk 0:02:54]}  e6 {[%clk 0:02:59]} 4. O-O {[%clk 0:02:46]}  Be7 {[%clk 0:03:00]} 5. d3 {[%clk 0:02:39]}  O-O {[%clk 0:03:00]} 6. Nbd2 {[%clk 0:02:36]}  Nc6 {[%clk 0:03:00]} 7. e4 {[%clk 0:02:32]}  dxe4 {[%clk 0:02:59]} 8. dxe4 {[%clk 0:02:30]}  e5 {[%clk 0:02:58]} 9. c3 {[%clk 0:02:26]}  a5 {[%clk 0:02:57]} 10. Qc2 {[%clk 0:02:15]}  Bc5 {[%clk 0:02:56]} 11. Nc4 {[%clk 0:02:08]}  Qe7 {[%clk 0:02:55]} 12. Nh4 {[%clk 0:01:52]}  Rd8 {[%clk 0:02:29]} 13. Ne3 {[%clk 0:01:50]}  Be6 {[%clk 0:02:28]} 14. b3 {[%clk 0:01:41]}  g6 {[%clk 0:02:25]} 15. a4 {[%clk 0:01:39]}  Rd7 {[%clk 0:02:19]} 16. Rd1 {[%clk 0:01:34]}  Rad8 {[%clk 0:02:16]} 17. Rxd7 {[%clk 0:01:34]}  Qxd7 {[%clk 0:02:17]} 18. Bf1 {[%clk 0:01:18]}  Bh3 {[%clk 0:02:06]} 19. Bc4 {[%clk 0:01:12]}  Ne7 {[%clk 0:01:49]} 20. Nf3 {[%clk 0:00:59]}  Nc6 {[%clk 0:01:00]} 21. Ng5 {[%clk 0:00:51]}  Rf8 {[%clk 0:00:51]} 22. Bd2 {[%clk 0:00:46]}  h6 {[%clk 0:00:45]} 23. Nxh3 {[%clk 0:00:45]}  Qxh3 {[%clk 0:00:46]} 24. Bf1 {[%clk 0:00:41]}  Qh5 {[%clk 0:00:45]} 25. h3 {[%clk 0:00:36]}  Rd8 {[%clk 0:00:43]} 26. Bg2 {[%clk 0:00:31]}  Qe2 {[%clk 0:00:41]} 27. Be1 {[%clk 0:00:24]}  Qxc2 {[%clk 0:00:31]} 28. Nxc2 {[%clk 0:00:25]}  h5 {[%clk 0:00:31]} 29. Bf3 {[%clk 0:00:21]}  Kg7 {[%clk 0:00:23]} 30. Kf1 {[%clk 0:00:20]}  h4 {[%clk 0:00:23]} 31. g4 {[%clk 0:00:20]}  Nh7 {[%clk 0:00:22]} 32. Rd1 {[%clk 0:00:20]}  Rxd1 {[%clk 0:00:20]} 33. Bxd1 {[%clk 0:00:21]}  Ng5 {[%clk 0:00:20]} 34. f3 {[%clk 0:00:21]}  Nxh3 {[%clk 0:00:18]} 35. Bxh4 {[%clk 0:00:22]}  Nf4 {[%clk 0:00:18]} 36. Bf2 {[%clk 0:00:17]}  Bxf2 {[%clk 0:00:17]} 37. Kxf2 {[%clk 0:00:17]}  Kf6 {[%clk 0:00:16]} 38. Be2 {[%clk 0:00:15]}  Ke7 {[%clk 0:00:14]} 39. Ke3 {[%clk 0:00:14]}  Nb8 {[%clk 0:00:14]} 40. Bf1 {[%clk 0:00:15]}  b6 {[%clk 0:00:14]} 41. Na3 {[%clk 0:00:15]}  f6 {[%clk 0:00:13]} 42. Nc4 {[%clk 0:00:15]}  Ne6 {[%clk 0:00:07]} 43. b4 {[%clk 0:00:13]}  Nc6 {[%clk 0:00:08]} 44. bxa5 {[%clk 0:00:13]}  Nxa5 {[%clk 0:00:07]} 45. Nxa5 {[%clk 0:00:12]}  bxa5 {[%clk 0:00:08]} 46. Bb5 {[%clk 0:00:12]}  Nc5 {[%clk 0:00:08]} 47. f4 {[%clk 0:00:10]}  g5 {[%clk 0:00:06]} 48. fxg5 {[%clk 0:00:04]}  fxg5 {[%clk 0:00:07]} 49. Ke2 {[%clk 0:00:03]}  Kd6 {[%clk 0:00:06]} 50. Ke3 {[%clk 0:00:03]}  c6 {[%clk 0:00:07]} 51. Be2 {[%clk 0:00:04]}  Nxa4 {[%clk 0:00:07]} 52. Kd3 {[%clk 0:00:05]}  Nc5+ {[%clk 0:00:07]} 53. Ke3 {[%clk 0:00:05]}  Kc7 {[%clk 0:00:07]} 54. Bc4 {[%clk 0:00:06]}  a4 {[%clk 0:00:07]} 55. Ba2 {[%clk 0:00:05]}  Kb6 {[%clk 0:00:07]} 56. Bc4 {[%clk 0:00:05]}  a3 {[%clk 0:00:08]} 57. Ba2 {[%clk 0:00:06]}  Kb5 {[%clk 0:00:07]} 58. Bf7 {[%clk 0:00:05]}  Ka4 {[%clk 0:00:08]} 59. Ba2 {[%clk 0:00:06]}  Ka5 {[%clk 0:00:07]} 60. Bc4 {[%clk 0:00:05]}  Na4 {[%clk 0:00:07]} 61. Kd3 {[%clk 0:00:05]}  Nb2+ {[%clk 0:00:07]} 62. Kc2 {[%clk 0:00:06]}  Nxc4 {[%clk 0:00:08]} 63. Kb3 {[%clk 0:00:07]}  Nd2+ {[%clk 0:00:08]} 64. Kxa3 {[%clk 0:00:07]}  Nxe4 {[%clk 0:00:09]} 65. Kb3 {[%clk 0:00:08]}  Kb5 {[%clk 0:00:09]} 66. Kc2 {[%clk 0:00:08]}  Kc4 {[%clk 0:00:10]} 67. Kd1 {[%clk 0:00:09]}  Kd3 {[%clk 0:00:10]} 68. Ke1 {[%clk 0:00:09]}  c5 {[%clk 0:00:11]} 69. Kf1 {[%clk 0:00:10]}  c4 {[%clk 0:00:12]} 70. Kg2 {[%clk 0:00:11]}  Ke2 {[%clk 0:00:12]} 71. Kh3 {[%clk 0:00:12]}  Nxc3 {[%clk 0:00:13]} 72. Kh2 {[%clk 0:00:13]}  Ne4 {[%clk 0:00:13]} 73. Kg2 {[%clk 0:00:13]}  c3 {[%clk 0:00:14]} 74. Kh3 {[%clk 0:00:14]}  c2 {[%clk 0:00:15]} 75. Kh2 {[%clk 0:00:15]}  c1=Q {[%clk 0:00:15]} 76. Kh3 {[%clk 0:00:16]}  Qh1# {[%clk 0:00:15]} 0-1


[Site "https://www.chess.com"]

[Event "Titled Tuesday Blitz October 18 Late 2022"]
[White "Zeynalli, Rashad"]
[Black "Lorenzo De La Riva, Lazaro"]
[WhiteFideId "13403320"]
[BlackFideId "2268809"]
[WhiteElo "2125"]
[BlackElo "2325"]
[Result "1-0"]
[Round "06"]
[TimeControl "180+1"]
[Date "2022.10.19"]
[WhiteClock "0:00:13"]
[BlackClock "0:00:25"]

1. d4 {[%clk 0:02:50]}  d5 {[%clk 0:03:00]} 2. Bf4 {[%clk 0:02:48]}  Nf6 {[%clk 0:03:00]} 3. e3 {[%clk 0:02:48]}  c5 {[%clk 0:03:00]} 4. c3 {[%clk 0:02:48]}  e6 {[%clk 0:03:00]} 5. Nd2 {[%clk 0:02:48]}  Bd6 {[%clk 0:03:00]} 6. Bg3 {[%clk 0:02:47]}  Qc7 {[%clk 0:02:59]} 7. Ngf3 {[%clk 0:02:41]}  Nbd7 {[%clk 0:02:58]} 8. Bd3 {[%clk 0:02:37]}  O-O {[%clk 0:02:57]} 9. Qe2 {[%clk 0:02:30]}  e5 {[%clk 0:02:54]} 10. dxe5 {[%clk 0:02:30]}  Nxe5 {[%clk 0:02:54]} 11. Nxe5 {[%clk 0:02:30]}  Bxe5 {[%clk 0:02:55]} 12. Bh4 {[%clk 0:02:30]}  Bg4 {[%clk 0:02:38]} 13. f3 {[%clk 0:02:28]}  Be6 {[%clk 0:02:37]} 14. f4 {[%clk 0:02:25]}  Bd6 {[%clk 0:02:24]} 15. Bxf6 {[%clk 0:02:24]}  gxf6 {[%clk 0:02:25]} 16. Qh5 {[%clk 0:02:24]}  f5 {[%clk 0:02:24]} 17. g4 {[%clk 0:02:17]}  f6 {[%clk 0:02:22]} 18. gxf5 {[%clk 0:01:43]}  Bd7 {[%clk 0:02:05]} 19. Rg1+ {[%clk 0:01:33]}  Kh8 {[%clk 0:02:04]} 20. Qh6 {[%clk 0:01:31]}  Bc6 {[%clk 0:02:04]} 21. O-O-O {[%clk 0:01:28]}  Qe7 {[%clk 0:01:45]} 22. Rg3 {[%clk 0:01:26]}  Rg8 {[%clk 0:01:42]} 23. Rdg1 {[%clk 0:01:24]}  Rxg3 {[%clk 0:01:42]} 24. Rxg3 {[%clk 0:01:25]}  Rg8 {[%clk 0:01:34]} 25. Rxg8+ {[%clk 0:01:24]}  Kxg8 {[%clk 0:01:35]} 26. Nf1 {[%clk 0:01:22]}  Qg7 {[%clk 0:01:25]} 27. Qxg7+ {[%clk 0:01:17]}  Kxg7 {[%clk 0:01:25]} 28. Kd2 {[%clk 0:01:16]}  d4 {[%clk 0:01:19]} 29. Ng3 {[%clk 0:01:11]}  dxe3+ {[%clk 0:01:16]} 30. Kxe3 {[%clk 0:01:11]}  Kh6 {[%clk 0:01:15]} 31. Be4 {[%clk 0:01:10]}  Bxe4 {[%clk 0:01:12]} 32. Nxe4 {[%clk 0:01:07]}  Be7 {[%clk 0:01:13]} 33. c4 {[%clk 0:01:07]}  Kh5 {[%clk 0:01:12]} 34. Kf3 {[%clk 0:01:07]}  Kh4 {[%clk 0:01:11]} 35. Nf2 {[%clk 0:01:02]}  b6 {[%clk 0:01:06]} 36. Ke4 {[%clk 0:01:01]}  Bd6 {[%clk 0:01:04]} 37. Kf3 {[%clk 0:00:50]}  h5 {[%clk 0:01:03]} 38. Ne4 {[%clk 0:00:48]}  Be7 {[%clk 0:01:02]} 39. Ng3 {[%clk 0:00:48]}  Bd6 {[%clk 0:01:00]} 40. b3 {[%clk 0:00:40]}  Bc7 {[%clk 0:00:54]} 41. Ne4 {[%clk 0:00:30]}  Bd8 {[%clk 0:00:49]} 42. Nf2 {[%clk 0:00:29]}  Bc7 {[%clk 0:00:48]} 43. a3 {[%clk 0:00:25]}  Bd6 {[%clk 0:00:47]} 44. Ne4 {[%clk 0:00:24]}  Be7 {[%clk 0:00:47]} 45. Ng3 {[%clk 0:00:24]}  Bd6 {[%clk 0:00:44]} 46. Ne4 {[%clk 0:00:20]}  Be7 {[%clk 0:00:44]} 47. Nf2 {[%clk 0:00:19]}  a6 {[%clk 0:00:41]} 48. Ke3 {[%clk 0:00:18]}  b5 {[%clk 0:00:39]} 49. cxb5 {[%clk 0:00:17]}  axb5 {[%clk 0:00:39]} 50. a4 {[%clk 0:00:17]}  bxa4 {[%clk 0:00:39]} 51. bxa4 {[%clk 0:00:17]}  Bd8 {[%clk 0:00:38]} 52. Kd3 {[%clk 0:00:17]}  Ba5 {[%clk 0:00:31]} 53. Kc4 {[%clk 0:00:17]}  Be1 {[%clk 0:00:31]} 54. Nd3 {[%clk 0:00:16]}  Bd2 {[%clk 0:00:29]} 55. Nxc5 {[%clk 0:00:14]}  Kh3 {[%clk 0:00:28]} 56. Ne4 {[%clk 0:00:14]}  Bxf4 {[%clk 0:00:27]} 57. Nxf6 {[%clk 0:00:14]}  h4 {[%clk 0:00:27]} 58. Nd5 {[%clk 0:00:13]}  Bd6 {[%clk 0:00:27]} 59. a5 {[%clk 0:00:12]}  Kxh2 {[%clk 0:00:27]} 60. a6 {[%clk 0:00:13]}  Bb8 {[%clk 0:00:27]} 61. f6 {[%clk 0:00:13]}  Kg3 {[%clk 0:00:22]} 62. f7 {[%clk 0:00:13]}  h3 {[%clk 0:00:22]} 63. f8=Q {[%clk 0:00:13]}  h2 {[%clk 0:00:23]} 64. Qxb8+ {[%clk 0:00:13]}  Kg2 {[%clk 0:00:24]} 65. Qxh2+ {[%clk 0:00:13]}  Kxh2 {[%clk 0:00:25]} 66. a7 {[%clk 0:00:13]} 1-0


[Site "https://www.chess.com"]

[Event "Titled Tuesday Blitz October 18 Late 2022"]
[White "Abdyzhapar, Asylbek"]
[Black "Li, Ruifeng"]
[WhiteFideId "13800337"]
[BlackFideId "2061074"]
[WhiteElo "2323"]
[BlackElo "2441"]
[Result "0-1"]
[Round "07"]
[TimeControl "180+1"]
[Date "2022.10.18"]
[WhiteClock "0:00:31"]
[BlackClock "0:00:25"]

1. d4 {[%clk 0:02:01]}  Nf6 {[%clk 0:02:58]} 2. c4 {[%clk 0:02:02]}  e6 {[%clk 0:02:59]} 3. Nc3 {[%clk 0:02:02]}  Bb4 {[%clk 0:02:58]} 4. e3 {[%clk 0:02:02]}  O-O {[%clk 0:02:58]} 5. Bd2 {[%clk 0:02:03]}  b6 {[%clk 0:02:57]} 6. Nf3 {[%clk 0:02:03]}  Bb7 {[%clk 0:02:57]} 7. Bd3 {[%clk 0:02:03]}  d5 {[%clk 0:02:57]} 8. a3 {[%clk 0:02:02]}  Bd6 {[%clk 0:02:57]} 9. cxd5 {[%clk 0:02:02]}  exd5 {[%clk 0:02:57]} 10. Ne5 {[%clk 0:02:02]}  c5 {[%clk 0:02:55]} 11. O-O {[%clk 0:02:02]}  Nc6 {[%clk 0:02:54]} 12. Nxc6 {[%clk 0:01:49]}  Bxc6 {[%clk 0:02:55]} 13. h3 {[%clk 0:01:47]}  Re8 {[%clk 0:02:43]} 14. Qf3 {[%clk 0:01:47]}  Rc8 {[%clk 0:02:36]} 15. Rad1 {[%clk 0:01:45]}  c4 {[%clk 0:02:35]} 16. Bb1 {[%clk 0:01:45]}  b5 {[%clk 0:02:34]} 17. g4 {[%clk 0:01:39]}  a5 {[%clk 0:02:32]} 18. Qg2 {[%clk 0:01:31]}  b4 {[%clk 0:02:30]} 19. axb4 {[%clk 0:01:32]}  axb4 {[%clk 0:02:31]} 20. Ne2 {[%clk 0:01:32]}  Ne4 {[%clk 0:02:30]} 21. Bc1 {[%clk 0:01:32]}  Ba4 {[%clk 0:02:25]} 22. f3 {[%clk 0:01:27]}  Bxd1 {[%clk 0:02:23]} 23. Rxd1 {[%clk 0:01:26]}  Ng5 {[%clk 0:02:03]} 24. e4 {[%clk 0:01:22]}  dxe4 {[%clk 0:02:01]} 25. fxe4 {[%clk 0:01:22]}  c3 {[%clk 0:01:59]} 26. bxc3 {[%clk 0:01:22]}  bxc3 {[%clk 0:01:59]} 27. Bc2 {[%clk 0:01:22]}  Ra8 {[%clk 0:01:50]} 28. e5 {[%clk 0:01:22]}  Bb4 {[%clk 0:01:38]} 29. h4 {[%clk 0:01:19]}  Ne6 {[%clk 0:01:37]} 30. d5 {[%clk 0:01:20]}  Nc5 {[%clk 0:01:21]} 31. Qg3 {[%clk 0:01:17]}  Ra2 {[%clk 0:01:19]} 32. Nd4 {[%clk 0:01:14]}  Qxd5 {[%clk 0:01:08]} 33. Nf5 {[%clk 0:01:10]}  Ne4 {[%clk 0:00:45]} 34. Qe3 {[%clk 0:00:53]}  Qxe5 {[%clk 0:00:29]} 35. Bb3 {[%clk 0:00:35]}  Bc5 {[%clk 0:00:27]} 36. Nd4 {[%clk 0:00:31]}  Qh2+ {[%clk 0:00:25]} 0-1


[Site "https://www.chess.com"]

[Event "Titled Tuesday Blitz October 18 Late 2022"]
[White "Aggelis, Nikolaos"]
[Black "Hoffmann, Asa"]
[WhiteFideId "4213220"]
[BlackFideId "2001470"]
[WhiteElo "2187"]
[BlackElo "2117"]
[Result "1-0"]
[Round "07"]
[TimeControl "180+1"]
[Date "2022.10.19"]
[WhiteClock "0:00:47"]
[BlackClock "0:00:47"]

1. e4 {[%clk 0:02:58]}  d6 {[%clk 0:02:57]} 2. d4 {[%clk 0:02:55]}  Nf6 {[%clk 0:02:56]} 3. Nc3 {[%clk 0:02:54]}  c6 {[%clk 0:02:56]} 4. Nf3 {[%clk 0:02:42]}  Bg4 {[%clk 0:02:55]} 5. Be2 {[%clk 0:02:42]}  e6 {[%clk 0:02:55]} 6. O-O {[%clk 0:02:42]}  d5 {[%clk 0:02:54]} 7. exd5 {[%clk 0:02:42]}  cxd5 {[%clk 0:02:50]} 8. h3 {[%clk 0:02:39]}  Bxf3 {[%clk 0:02:48]} 9. Bxf3 {[%clk 0:02:39]}  Nc6 {[%clk 0:02:47]} 10. Re1 {[%clk 0:02:39]}  Be7 {[%clk 0:02:46]} 11. Qe2 {[%clk 0:02:38]}  Nxd4 {[%clk 0:02:41]} 12. Qd3 {[%clk 0:02:36]}  Nxf3+ {[%clk 0:02:35]} 13. Qxf3 {[%clk 0:02:37]}  O-O {[%clk 0:02:35]} 14. Bf4 {[%clk 0:02:28]}  Rc8 {[%clk 0:02:34]} 15. Rad1 {[%clk 0:02:26]}  Qa5 {[%clk 0:02:32]} 16. Be5 {[%clk 0:02:20]}  Rc6 {[%clk 0:02:16]} 17. Qg3 {[%clk 0:02:09]}  Rfc8 {[%clk 0:02:11]} 18. a3 {[%clk 0:02:01]}  Qd8 {[%clk 0:02:00]} 19. Re2 {[%clk 0:01:51]}  a6 {[%clk 0:01:56]} 20. Ne4 {[%clk 0:01:40]}  Rxc2 {[%clk 0:01:35]} 21. Rxc2 {[%clk 0:01:23]}  Rxc2 {[%clk 0:01:34]} 22. Nxf6+ {[%clk 0:01:10]}  Bxf6 {[%clk 0:01:32]} 23. Bxf6 {[%clk 0:01:09]}  Qf8 {[%clk 0:00:55]} 24. Bc3 {[%clk 0:00:49]}  f6 {[%clk 0:00:51]} 25. Qd3 {[%clk 0:00:47]}  Rxc3 {[%clk 0:00:47]} 26. Qxc3 {[%clk 0:00:47]} 1-0


[Site "https://www.chess.com"]

[Event "Titled Tuesday Blitz October 18 Late 2022"]
[White "Al Hosani, Omran"]
[Black "Koziorowicz, Michal"]
[WhiteFideId "9308733"]
[BlackFideId "21809194"]
[WhiteElo "2167"]
[BlackElo "2220"]
[Result "1-0"]
[Round "07"]
[TimeControl "180+1"]
[Date "2022.10.18"]
[WhiteClock "0:00:02"]
[BlackClock "0:00:02"]

1. d4 {[%clk 0:02:59]}  e6 {[%clk 0:02:48]} 2. e4 {[%clk 0:03:00]}  d5 {[%clk 0:02:48]} 3. e5 {[%clk 0:03:00]}  c5 {[%clk 0:02:48]} 4. Nf3 {[%clk 0:03:00]}  Nc6 {[%clk 0:02:48]} 5. Bd3 {[%clk 0:03:01]}  Qb6 {[%clk 0:02:47]} 6. O-O {[%clk 0:03:00]}  cxd4 {[%clk 0:02:45]} 7. a3 {[%clk 0:03:00]}  a5 {[%clk 0:02:45]} 8. Re1 {[%clk 0:02:59]}  Nge7 {[%clk 0:02:43]} 9. Nbd2 {[%clk 0:02:58]}  Ng6 {[%clk 0:02:42]} 10. Nf1 {[%clk 0:02:58]}  Be7 {[%clk 0:02:38]} 11. g3 {[%clk 0:02:54]}  Bd7 {[%clk 0:02:31]} 12. h4 {[%clk 0:02:52]}  Nf8 {[%clk 0:02:20]} 13. Bf4 {[%clk 0:02:40]}  a4 {[%clk 0:02:11]} 14. Rb1 {[%clk 0:02:39]}  Na5 {[%clk 0:02:10]} 15. b4 {[%clk 0:02:38]}  axb3 {[%clk 0:02:10]} 16. cxb3 {[%clk 0:02:38]}  Bxa3 {[%clk 0:02:09]} 17. b4 {[%clk 0:02:21]}  Nc6 {[%clk 0:02:01]} 18. b5 {[%clk 0:02:13]}  Na5 {[%clk 0:01:57]} 19. Qa4 {[%clk 0:02:06]}  Be7 {[%clk 0:01:46]} 20. Ra1 {[%clk 0:02:05]}  Bd8 {[%clk 0:01:43]} 21. Bd2 {[%clk 0:02:02]}  Qa7 {[%clk 0:01:24]} 22. Ra2 {[%clk 0:01:52]}  Ng6 {[%clk 0:01:22]} 23. Nxd4 {[%clk 0:01:36]}  Bb6 {[%clk 0:01:02]} 24. Bxa5 {[%clk 0:01:14]}  Bxd4 {[%clk 0:00:59]} 25. b6 {[%clk 0:00:53]}  Bxa4 {[%clk 0:00:35]} 26. bxa7 {[%clk 0:00:51]}  Bd7 {[%clk 0:00:26]} 27. Rd1 {[%clk 0:00:39]}  Bxa7 {[%clk 0:00:20]} 28. Bb6 {[%clk 0:00:37]}  Nxe5 {[%clk 0:00:16]} 29. Rxa7 {[%clk 0:00:35]}  Rxa7 {[%clk 0:00:16]} 30. Bxa7 {[%clk 0:00:36]}  Bc6 {[%clk 0:00:16]} 31. Bd4 {[%clk 0:00:36]}  f6 {[%clk 0:00:17]} 32. Bxe5 {[%clk 0:00:23]}  fxe5 {[%clk 0:00:18]} 33. Rb1 {[%clk 0:00:24]}  Kd7 {[%clk 0:00:16]} 34. Bb5 {[%clk 0:00:24]}  Kc7 {[%clk 0:00:16]} 35. Ne3 {[%clk 0:00:24]}  Ra8 {[%clk 0:00:13]} 36. Ng4 {[%clk 0:00:24]}  Kd6 {[%clk 0:00:12]} 37. Bxc6 {[%clk 0:00:23]}  bxc6 {[%clk 0:00:13]} 38. Rb7 {[%clk 0:00:24]}  Rg8 {[%clk 0:00:12]} 39. Kf1 {[%clk 0:00:22]}  d4 {[%clk 0:00:12]} 40. f3 {[%clk 0:00:22]}  h5 {[%clk 0:00:11]} 41. Nf2 {[%clk 0:00:22]}  c5 {[%clk 0:00:06]} 42. Ne4+ {[%clk 0:00:12]}  Kd5 {[%clk 0:00:04]} 43. Rd7+ {[%clk 0:00:13]}  Kc4 {[%clk 0:00:05]} 44. Rc7 {[%clk 0:00:13]}  Kd3 {[%clk 0:00:03]} 45. Nxc5+ {[%clk 0:00:13]}  Ke3 {[%clk 0:00:02]} 46. Nxe6 {[%clk 0:00:10]}  Ra8 {[%clk 0:00:02]} 47. Ng5 {[%clk 0:00:02]} 1-0


[Site "https://www.chess.com"]

[Event "Titled Tuesday Blitz October 18 Late 2022"]
[White "Alexikov, Alexander"]
[Black "Marcolino, Daniel Mattos"]
[WhiteFideId "14103958"]
[BlackFideId "2106841"]
[WhiteElo "2222"]
[BlackElo "2068"]
[Result "1-0"]
[Round "07"]
[TimeControl "180+1"]
[Date "2022.10.19"]
[WhiteClock "0:00:22"]
[BlackClock "0:00:02"]

1. e4 {[%clk 0:03:00]}  c6 {[%clk 0:03:00]} 2. d4 {[%clk 0:02:59]}  d5 {[%clk 0:03:01]} 3. e5 {[%clk 0:02:59]}  c5 {[%clk 0:03:01]} 4. dxc5 {[%clk 0:02:57]}  e6 {[%clk 0:03:01]} 5. Be3 {[%clk 0:02:56]}  Nd7 {[%clk 0:03:00]} 6. Bb5 {[%clk 0:02:52]}  Ne7 {[%clk 0:03:00]} 7. c3 {[%clk 0:02:44]}  Nc6 {[%clk 0:02:59]} 8. Bd4 {[%clk 0:02:38]}  Bxc5 {[%clk 0:02:56]} 9. Nf3 {[%clk 0:02:36]}  O-O {[%clk 0:02:56]} 10. O-O {[%clk 0:02:34]}  Bxd4 {[%clk 0:02:46]} 11. cxd4 {[%clk 0:02:33]}  f6 {[%clk 0:02:46]} 12. Re1 {[%clk 0:02:18]}  fxe5 {[%clk 0:02:43]} 13. Bxc6 {[%clk 0:02:18]}  bxc6 {[%clk 0:02:32]} 14. Nxe5 {[%clk 0:02:17]}  Nxe5 {[%clk 0:02:31]} 15. Rxe5 {[%clk 0:02:16]}  Qb6 {[%clk 0:02:25]} 16. b3 {[%clk 0:02:00]}  c5 {[%clk 0:02:20]} 17. Nc3 {[%clk 0:01:55]}  cxd4 {[%clk 0:02:16]} 18. Na4 {[%clk 0:01:54]}  Qb4 {[%clk 0:02:12]} 19. Rc1 {[%clk 0:01:42]}  d3 {[%clk 0:01:29]} 20. Re3 {[%clk 0:01:09]}  Qf4 {[%clk 0:01:07]} 21. Qd2 {[%clk 0:01:04]}  Bd7 {[%clk 0:01:03]} 22. Nc5 {[%clk 0:01:02]}  Rad8 {[%clk 0:00:56]} 23. Nxd3 {[%clk 0:00:59]}  Qf6 {[%clk 0:00:50]} 24. f4 {[%clk 0:00:55]}  Bb5 {[%clk 0:00:43]} 25. g3 {[%clk 0:00:47]}  Bxd3 {[%clk 0:00:43]} 26. Qxd3 {[%clk 0:00:46]}  Rc8 {[%clk 0:00:42]} 27. Rce1 {[%clk 0:00:45]}  Rc6 {[%clk 0:00:40]} 28. Re5 {[%clk 0:00:45]}  Rfc8 {[%clk 0:00:40]} 29. R1e2 {[%clk 0:00:43]}  Rc1+ {[%clk 0:00:14]} 30. Kg2 {[%clk 0:00:42]}  R8c6 {[%clk 0:00:06]} 31. Qe3 {[%clk 0:00:38]}  Ra1 {[%clk 0:00:05]} 32. Qxa7 {[%clk 0:00:31]}  Rcc1 {[%clk 0:00:02]} 33. Rxe6 {[%clk 0:00:22]} 1-0


[Site "https://www.chess.com"]